[Event "Early-Titled-Tuesday-Blitz-September-05-2023"]
[Site "Chess.com"]
[Date "2023.09.05"]
[Round "11"]
[White "Polish_fighter3000"]
[Black "Parhamov"]
[Result "0-1"]
[WhiteElo "3082"]
[BlackElo "2951"]
[TimeControl "180+1"]
[EndTime "10:06:09 PDT"]
[Termination "Parhamov won on time"]

1. c4 {[%clk 0:03:00.9]} 1... e6 {[%clk 0:02:59.1]} 2. Nc3 {[%clk 0:03:00.1]}
2... d5 {[%clk 0:02:58.5]} 3. d4 {[%clk 0:03:00.6]} 3... Bb4 {[%clk 0:02:57.7]}
4. a3 {[%clk 0:02:59.8]} 4... Bxc3+ {[%clk 0:02:57.2]} 5. bxc3 {[%clk
0:03:00.7]} 5... Nf6 {[%clk 0:02:52]} 6. cxd5 {[%clk 0:02:56.7]} 6... exd5
{[%clk 0:02:50.6]} 7. e3 {[%clk 0:02:56.8]} 7... O-O {[%clk 0:02:49.2]} 8. Bd3
{[%clk 0:02:56.4]} 8... c5 {[%clk 0:02:47.2]} 9. Ne2 {[%clk 0:02:56.2]} 9... b6
{[%clk 0:02:45.6]} 10. O-O {[%clk 0:02:53.2]} 10... Ba6 {[%clk 0:02:45.7]} 11.
f3 {[%clk 0:02:50.7]} 11... Bxd3 {[%clk 0:02:45.1]} 12. Qxd3 {[%clk 0:02:51.6]}
12... Nc6 {[%clk 0:02:45.4]} 13. Ra2 {[%clk 0:02:48.2]} 13... Re8 {[%clk
0:02:44.8]} 14. Ng3 {[%clk 0:02:48.1]} 14... h5 {[%clk 0:02:43.4]} 15. Re2
{[%clk 0:02:47.7]} 15... Rc8 {[%clk 0:02:41.9]} 16. Bb2 {[%clk 0:02:47]} 16...
cxd4 {[%clk 0:02:41.3]} 17. cxd4 {[%clk 0:02:46.7]} 17... g6 {[%clk 0:02:38.1]}
18. e4 {[%clk 0:02:11.8]} 18... h4 {[%clk 0:02:37.2]} 19. Nf5 {[%clk 0:02:12.1]}
19... gxf5 {[%clk 0:02:34.4]} 20. e5 {[%clk 0:02:12.6]} 20... Nh5 {[%clk
0:02:20.8]} 21. Qxf5 {[%clk 0:02:11.3]} 21... Ng7 {[%clk 0:02:21.1]} 22. Qg4
{[%clk 0:02:11.8]} 22... Re6 {[%clk 0:02:21.2]} 23. f4 {[%clk 0:02:12.3]} 23...
Rg6 {[%clk 0:02:14.8]} 24. Qh3 {[%clk 0:02:12.6]} 24... Ne7 {[%clk 0:02:11.4]}
25. Qxh4 {[%clk 0:01:56.2]} 25... Qd7 {[%clk 0:01:59.3]} 26. Rf3 {[%clk
0:01:47]} 26... Nef5 {[%clk 0:01:25.5]} 27. Qf2 {[%clk 0:01:44.6]} 27... Qe7
{[%clk 0:00:52.1]} 28. h3 {[%clk 0:01:25.1]} 28... Nh4 {[%clk 0:00:40.9]} 29.
Rg3 {[%clk 0:01:24.9]} 29... Rcc6 {[%clk 0:00:26]} 30. Rxg6 {[%clk 0:01:15]}
30... Rxg6 {[%clk 0:00:25.4]} 31. g4 {[%clk 0:01:15.4]} 31... Rc6 {[%clk
0:00:23.4]} 32. Kh2 {[%clk 0:01:06.5]} 32... Rc4 {[%clk 0:00:20.4]} 33. f5
{[%clk 0:00:54.9]} 33... Qg5 {[%clk 0:00:20.3]} 34. e6 {[%clk 0:00:45.6]} 34...
fxe6 {[%clk 0:00:20.5]} 35. fxe6 {[%clk 0:00:29]} 35... Rc7 {[%clk 0:00:20]} 36.
Re5 {[%clk 0:00:29.1]} 36... Qe7 {[%clk 0:00:15.7]} 37. Rxd5 {[%clk 0:00:23.1]}
37... Ng6 {[%clk 0:00:07.6]} 38. Rd7 {[%clk 0:00:04.1]} 38... Rxd7 {[%clk
0:00:07.5]} 39. exd7 {[%clk 0:00:05]} 39... Qxd7 {[%clk 0:00:08.4]} 40. d5
{[%clk 0:00:05.5]} 40... Qd6+ {[%clk 0:00:06.3]} 41. Kg1 {[%clk 0:00:06.1]}
41... Nf4 {[%clk 0:00:03.1]} 42. Qe3 {[%clk 0:00:03.3]} 42... Nxd5 {[%clk
0:00:03.4]} 43. Qf3 {[%clk 0:00:01.9]} 43... Ne6 {[%clk 0:00:02.6]} 0-1

[Event "Early-Titled-Tuesday-Blitz-September-05-2023"]
[Site "Chess.com"]
[Date "2023.09.05"]
[Round "11"]
[White "Tugrik1969"]
[Black "Mikedannnn"]
[Result "0-1"]
[WhiteElo "2499"]
[BlackElo "2611"]
[TimeControl "180+1"]
[EndTime "10:06:09 PDT"]
[Termination "Mikedannnn won on time"]

1. e4 {[%clk 0:03:00.9]} 1... c5 {[%clk 0:02:47.4]} 2. Nf3 {[%clk 0:03:00.8]}
2... e6 {[%clk 0:02:47]} 3. d3 {[%clk 0:03:00.5]} 3... Nc6 {[%clk 0:02:45.8]} 4.
g3 {[%clk 0:03:00.8]} 4... d5 {[%clk 0:02:43]} 5. Nbd2 {[%clk 0:03:00.6]} 5...
g6 {[%clk 0:02:34.6]} 6. Bg2 {[%clk 0:03:00.3]} 6... Bg7 {[%clk 0:02:34.7]} 7.
O-O {[%clk 0:03:01.2]} 7... Nge7 {[%clk 0:02:33.8]} 8. Re1 {[%clk 0:03:01.4]}
8... f6 {[%clk 0:02:34]} 9. c3 {[%clk 0:03:02.3]} 9... O-O {[%clk 0:02:32.1]}
10. a4 {[%clk 0:02:49]} 10... e5 {[%clk 0:02:31.6]} 11. exd5 {[%clk 0:02:46.8]}
11... Nxd5 {[%clk 0:02:31.4]} 12. Nc4 {[%clk 0:02:46.7]} 12... Be6 {[%clk
0:02:20.8]} 13. a5 {[%clk 0:02:45.4]} 13... Qd7 {[%clk 0:02:18.5]} 14. Nfd2
{[%clk 0:02:44.1]} 14... Rad8 {[%clk 0:02:17.6]} 15. Qa4 {[%clk 0:02:40.3]}
15... Nde7 {[%clk 0:02:12.5]} 16. Ne4 {[%clk 0:02:11.7]} 16... Qxd3 {[%clk
0:02:09.2]} 17. Bf1 {[%clk 0:02:11.3]} 17... Qd5 {[%clk 0:02:02.8]} 18. Ne3
{[%clk 0:02:11.4]} 18... Qb3 {[%clk 0:01:52.3]} 19. Qxb3 {[%clk 0:02:10.1]}
19... Bxb3 {[%clk 0:01:52.1]} 20. Nxc5 {[%clk 0:02:10.7]} 20... Bf7 {[%clk
0:01:51.3]} 21. Nxb7 {[%clk 0:02:10.7]} 21... Rb8 {[%clk 0:01:51.5]} 22. Nd6
{[%clk 0:02:07.5]} 22... Be6 {[%clk 0:01:51.2]} 23. Bc4 {[%clk 0:01:43.6]} 23...
Bxc4 {[%clk 0:01:47.4]} 24. Nexc4 {[%clk 0:01:44.5]} 24... f5 {[%clk 0:01:44.4]}
25. f4 {[%clk 0:01:32.9]} 25... e4 {[%clk 0:01:43.3]} 26. Be3 {[%clk 0:01:33.2]}
26... Nd5 {[%clk 0:01:39.2]} 27. Bc5 {[%clk 0:01:26.3]} 27... Rfd8 {[%clk
0:01:38.5]} 28. Red1 {[%clk 0:01:24.3]} 28... Nc7 {[%clk 0:01:36.2]} 29. Ba3
{[%clk 0:00:27.2]} 29... Ne6 {[%clk 0:01:30]} 30. Kf2 {[%clk 0:00:24.1]} 30...
g5 {[%clk 0:01:27.8]} 31. Ke3 {[%clk 0:00:23.7]} 31... Bh6 {[%clk 0:01:23.5]}
32. Nxf5 {[%clk 0:00:18.6]} 32... gxf4+ {[%clk 0:01:23]} 33. Kxe4 {[%clk
0:00:17.8]} 33... Bf8 {[%clk 0:01:18.6]} 34. gxf4 {[%clk 0:00:09.5]} 34... Bxa3
{[%clk 0:01:17.3]} 35. Rxd8+ {[%clk 0:00:08.5]} 35... Rxd8 {[%clk 0:01:17.3]}
36. Rxa3 {[%clk 0:00:06.2]} 36... Nc5+ {[%clk 0:01:14.5]} 37. Kf3 {[%clk
0:00:06.7]} 37... Rd1 {[%clk 0:01:10.1]} 38. Nfe3 {[%clk 0:00:06.3]} 38... Rb1
{[%clk 0:01:03.3]} 39. b4 {[%clk 0:00:06.5]} 39... Nd3 {[%clk 0:01:02.7]} 40. f5
{[%clk 0:00:04.7]} 40... Kf7 {[%clk 0:01:01.2]} 41. Ke4 {[%clk 0:00:05.1]} 41...
Nf2+ {[%clk 0:01:00.6]} 42. Kd5 {[%clk 0:00:05.4]} 42... Ne7+ {[%clk 0:01:00.9]}
43. Kc5 {[%clk 0:00:04.4]} 43... Ne4+ {[%clk 0:01:00.4]} 44. Kd4 {[%clk
0:00:02.6]} 44... Nf2 {[%clk 0:00:58.5]} 45. b5 {[%clk 0:00:02.6]} 45... Rxb5
{[%clk 0:00:58.1]} 46. Ra2 {[%clk 0:00:02.1]} 46... Nh3 {[%clk 0:00:56.9]} 47.
Rg2 {[%clk 0:00:02.1]} 47... Nf4 {[%clk 0:00:56.2]} 48. Rg4 {[%clk 0:00:01.1]}
48... Ne2+ {[%clk 0:00:55.4]} 49. Kd3 {[%clk 0:00:01.2]} 49... Nc1+ {[%clk
0:00:55.6]} 50. Kc2 {[%clk 0:00:02.1]} 50... Nb3 {[%clk 0:00:55.4]} 51. Kd3
{[%clk 0:00:03]} 51... Nxa5 {[%clk 0:00:54.6]} 52. Nxa5 {[%clk 0:00:03.9]} 52...
Rxa5 {[%clk 0:00:55.5]} 53. Ke4 {[%clk 0:00:04.3]} 53... Ra4+ {[%clk 0:00:54.5]}
54. c4 {[%clk 0:00:04.9]} 54... a5 {[%clk 0:00:54.4]} 55. Rh4 {[%clk 0:00:05.4]}
55... Kg7 {[%clk 0:00:52.6]} 56. Ke5 {[%clk 0:00:06]} 56... Ng8 {[%clk
0:00:52.7]} 57. Rg4+ {[%clk 0:00:05.9]} 57... Kf7 {[%clk 0:00:53.1]} 58. f6
{[%clk 0:00:03.8]} 58... Ra1 {[%clk 0:00:51.9]} 59. Rg7+ {[%clk 0:00:03.7]}
59... Kf8 {[%clk 0:00:52.5]} 60. Nd5 {[%clk 0:00:02.3]} 60... Nxf6 {[%clk
0:00:52.5]} 0-1

[Event "Early-Titled-Tuesday-Blitz-September-05-2023"]
[Site "Chess.com"]
[Date "2023.09.05"]
[Round "11"]
[White "Chessbard1972"]
[Black "BigPiano"]
[Result "1-0"]
[WhiteElo "2510"]
[BlackElo "2361"]
[TimeControl "180+1"]
[EndTime "10:06:09 PDT"]
[Termination "Chessbard1972 won by resignation"]

1. e4 {[%clk 0:03:00.9]} 1... c6 {[%clk 0:03:00]} 2. Nc3 {[%clk 0:02:59.5]} 2...
d5 {[%clk 0:03:00.9]} 3. Nf3 {[%clk 0:02:59.5]} 3... dxe4 {[%clk 0:03:00.9]} 4.
Nxe4 {[%clk 0:02:59.6]} 4... Nf6 {[%clk 0:03:01]} 5. Nxf6+ {[%clk 0:02:59.5]}
5... exf6 {[%clk 0:03:01.2]} 6. d4 {[%clk 0:02:59]} 6... Bd6 {[%clk 0:03:01.1]}
7. Bd3 {[%clk 0:02:58.5]} 7... O-O {[%clk 0:03:01.8]} 8. O-O {[%clk 0:02:57.6]}
8... Re8 {[%clk 0:02:59.8]} 9. h3 {[%clk 0:02:57.4]} 9... Nd7 {[%clk 0:02:58.4]}
10. c3 {[%clk 0:02:57.4]} 10... Nf8 {[%clk 0:02:59]} 11. Qc2 {[%clk 0:02:57.1]}
11... h5 {[%clk 0:02:54.1]} 12. Bd2 {[%clk 0:02:54.5]} 12... Be6 {[%clk
0:02:52]} 13. Rfe1 {[%clk 0:02:53.1]} 13... Bc7 {[%clk 0:02:51.4]} 14. c4 {[%clk
0:02:50.5]} 14... Qd7 {[%clk 0:02:42.5]} 15. Bf1 {[%clk 0:02:44.6]} 15... Bf5
{[%clk 0:02:38.8]} 16. Qb3 {[%clk 0:02:39.7]} 16... a5 {[%clk 0:02:31.4]} 17.
Rxe8 {[%clk 0:02:30.4]} 17... Rxe8 {[%clk 0:02:31]} 18. Re1 {[%clk 0:02:29.9]}
18... Rxe1 {[%clk 0:02:23.5]} 19. Bxe1 {[%clk 0:02:29.8]} 19... Ne6 {[%clk
0:02:24.2]} 20. Qd1 {[%clk 0:02:25.2]} 20... Nf4 {[%clk 0:02:13.2]} 21. Nh4
{[%clk 0:02:16]} 21... Be4 {[%clk 0:02:04]} 22. g3 {[%clk 0:02:06.9]} 22...
Nxh3+ {[%clk 0:02:00.1]} 23. Kh2 {[%clk 0:02:00.8]} 23... Ng5 {[%clk 0:01:38]}
24. f4 {[%clk 0:01:51.3]} 24... Ne6 {[%clk 0:01:29.5]} 25. Bc3 {[%clk
0:01:47.8]} 25... Nxf4 {[%clk 0:01:05]} 26. gxf4 {[%clk 0:01:45.9]} 26... Bxf4+
{[%clk 0:01:05.9]} 27. Kg1 {[%clk 0:01:44]} 27... g5 {[%clk 0:01:01.6]} 28. Qxh5
{[%clk 0:01:39.5]} 28... gxh4 {[%clk 0:00:58.7]} 29. Qxh4 {[%clk 0:01:36.8]}
29... Be3+ {[%clk 0:00:48.3]} 30. Kh2 {[%clk 0:01:36]} 30... Qf5 {[%clk
0:00:26.4]} 31. Bh3 {[%clk 0:01:18.8]} 31... Bf4+ {[%clk 0:00:24.8]} 32. Kg1
{[%clk 0:01:17.3]} 32... Qg6+ {[%clk 0:00:23.9]} 33. Kf2 {[%clk 0:01:13]} 33...
Bd3 {[%clk 0:00:18.4]} 34. Qxf4 {[%clk 0:01:09.1]} 34... Bxc4 {[%clk 0:00:18]}
35. Qg3 {[%clk 0:01:02.2]} 35... a4 {[%clk 0:00:14]} 36. a3 {[%clk 0:01:00.1]}
36... Kf8 {[%clk 0:00:10.3]} 37. Qxg6 {[%clk 0:00:58.1]} 37... fxg6 {[%clk
0:00:11.2]} 38. Bb4+ {[%clk 0:00:54.6]} 38... Kf7 {[%clk 0:00:11.4]} 39. Bc8
{[%clk 0:00:54.3]} 39... b6 {[%clk 0:00:11.2]} 40. Bd7 {[%clk 0:00:50.9]} 40...
Bd5 {[%clk 0:00:11.7]} 41. Ke3 {[%clk 0:00:48.9]} 41... g5 {[%clk 0:00:11.4]}
42. Bf5 {[%clk 0:00:47.8]} 42... Kg7 {[%clk 0:00:10.5]} 43. Be7 {[%clk
0:00:46.6]} 43... Kf7 {[%clk 0:00:10.3]} 44. Bd8 {[%clk 0:00:45.2]} 44... b5
{[%clk 0:00:10.2]} 45. Be4 {[%clk 0:00:42.1]} 45... Ke6 {[%clk 0:00:10.6]} 46.
Bxd5+ {[%clk 0:00:40.8]} 46... cxd5 {[%clk 0:00:11.5]} 47. Kf3 {[%clk
0:00:38.6]} 47... Kf5 {[%clk 0:00:11.4]} 48. Bc7 {[%clk 0:00:36.6]} 48... g4+
{[%clk 0:00:10.9]} 49. Ke3 {[%clk 0:00:35.9]} 49... Kg5 {[%clk 0:00:10.6]} 50.
Bg3 {[%clk 0:00:31]} 50... f5 {[%clk 0:00:10.2]} 51. Be5 {[%clk 0:00:25.3]}
51... Kh4 {[%clk 0:00:10.3]} 52. Kf2 {[%clk 0:00:24.6]} 52... Kg5 {[%clk
0:00:05.8]} 53. Kg3 {[%clk 0:00:24.4]} 53... Kh5 {[%clk 0:00:05.5]} 54. Kf4
{[%clk 0:00:23.5]} 54... Kh4 {[%clk 0:00:05.9]} 55. Kxf5 {[%clk 0:00:23.7]}
55... g3 {[%clk 0:00:06.1]} 56. Bxg3+ {[%clk 0:00:23.6]} 56... Kxg3 {[%clk
0:00:07]} 57. Ke5 {[%clk 0:00:24.2]} 57... Kf3 {[%clk 0:00:07.3]} 58. Kxd5
{[%clk 0:00:24.6]} 58... Ke3 {[%clk 0:00:07.7]} 59. Kc5 {[%clk 0:00:25]} 59...
Kd3 {[%clk 0:00:08]} 60. d5 {[%clk 0:00:25]} 60... Kc2 {[%clk 0:00:08.1]} 61.
Kxb5 {[%clk 0:00:25]} 61... Kxb2 {[%clk 0:00:06.4]} 62. Kxa4 {[%clk 0:00:25.2]}
62... Kc3 {[%clk 0:00:06.9]} 63. d6 {[%clk 0:00:25.5]} 1-0

[Event "Early-Titled-Tuesday-Blitz-September-05-2023"]
[Site "Chess.com"]
[Date "2023.09.05"]
[Round "11"]
[White "Hikaru"]
[Black "Beca95"]
[Result "1-0"]
[WhiteElo "3246"]
[BlackElo "2978"]
[TimeControl "180+1"]
[EndTime "10:06:10 PDT"]
[Termination "Hikaru won by resignation"]

1. h3 {[%clk 0:03:00.9]} 1... c5 {[%clk 0:02:56.9]} 2. c4 {[%clk 0:02:55.3]}
2... Nc6 {[%clk 0:02:56.8]} 3. g3 {[%clk 0:02:53.6]} 3... Nf6 {[%clk 0:02:54.1]}
4. Bg2 {[%clk 0:02:53.3]} 4... d5 {[%clk 0:02:54.3]} 5. cxd5 {[%clk 0:02:54.1]}
5... Nxd5 {[%clk 0:02:54.1]} 6. Nc3 {[%clk 0:02:54.9]} 6... Nc7 {[%clk
0:02:53.6]} 7. d3 {[%clk 0:02:54.4]} 7... e5 {[%clk 0:02:53.2]} 8. Bxc6+ {[%clk
0:02:54.4]} 8... bxc6 {[%clk 0:02:52.8]} 9. Nf3 {[%clk 0:02:55.3]} 9... f6
{[%clk 0:02:52.1]} 10. Be3 {[%clk 0:02:52.8]} 10... Ne6 {[%clk 0:02:33.3]} 11.
Qa4 {[%clk 0:02:47.9]} 11... Qd7 {[%clk 0:02:29.7]} 12. Rc1 {[%clk 0:02:42.2]}
12... Rb8 {[%clk 0:02:21.5]} 13. b3 {[%clk 0:02:19.4]} 13... Be7 {[%clk
0:02:05.9]} 14. Ne4 {[%clk 0:02:14]} 14... Rb5 {[%clk 0:01:53.5]} 15. Qc4 {[%clk
0:02:03.4]} 15... Nd4 {[%clk 0:01:39.9]} 16. Nfd2 {[%clk 0:01:17.7]} 16... f5
{[%clk 0:01:21.2]} 17. Ng5 {[%clk 0:01:17.4]} 17... Qd5 {[%clk 0:01:21.1]} 18.
Ngf3 {[%clk 0:01:05]} 18... Be6 {[%clk 0:00:46.4]} 19. Qxd5 {[%clk 0:00:39.1]}
19... Bxd5 {[%clk 0:00:45.7]} 20. Rg1 {[%clk 0:00:39.1]} 20... Bf6 {[%clk
0:00:33.5]} 21. Bxd4 {[%clk 0:00:26.6]} 21... cxd4 {[%clk 0:00:31.6]} 22. Nc4
{[%clk 0:00:27.1]} 22... e4 {[%clk 0:00:31.7]} 23. Nd6+ {[%clk 0:00:22.8]} 23...
Kd7 {[%clk 0:00:31.5]} 24. Nxb5 {[%clk 0:00:23.7]} 24... exf3 {[%clk 0:00:31.6]}
25. Na3 {[%clk 0:00:24.4]} 25... Re8 {[%clk 0:00:28.5]} 26. Rc2 {[%clk
0:00:24.6]} 26... Be7 {[%clk 0:00:18.4]} 27. Nc4 {[%clk 0:00:23.6]} 27... Bb4+
{[%clk 0:00:19]} 28. Kf1 {[%clk 0:00:23.2]} 28... c5 {[%clk 0:00:16.8]} 29. e3
{[%clk 0:00:15.7]} 29... g5 {[%clk 0:00:14]} 30. g4 {[%clk 0:00:15.5]} 30... f4
{[%clk 0:00:12.4]} 31. e4 {[%clk 0:00:16.1]} 31... Bxc4 {[%clk 0:00:11.9]} 32.
Rxc4 {[%clk 0:00:15.4]} 32... Kc6 {[%clk 0:00:12.2]} 33. h4 {[%clk 0:00:14.6]}
33... h6 {[%clk 0:00:11.2]} 34. hxg5 {[%clk 0:00:14.3]} 34... hxg5 {[%clk
0:00:12.1]} 35. Rh1 {[%clk 0:00:14.7]} 35... Kb5 {[%clk 0:00:12]} 36. Rh6 {[%clk
0:00:13.7]} 36... Rg8 {[%clk 0:00:11.4]} 37. Rh3 {[%clk 0:00:09.1]} 37... Rg6
{[%clk 0:00:11.7]} 38. Rxf3 {[%clk 0:00:08.9]} 38... Rh6 {[%clk 0:00:10.8]} 39.
Kg2 {[%clk 0:00:09.5]} 39... Bc3 {[%clk 0:00:10.7]} 40. Rh3 {[%clk 0:00:08.4]}
40... Ra6 {[%clk 0:00:08.8]} 41. a4+ {[%clk 0:00:08.1]} 41... Ka5 {[%clk
0:00:09.4]} 42. Rxc5+ {[%clk 0:00:08.2]} 42... Kb4 {[%clk 0:00:10.1]} 43. Rb5+
{[%clk 0:00:08.8]} 43... Ka3 {[%clk 0:00:10.7]} 44. e5 {[%clk 0:00:09.3]} 44...
Re6 {[%clk 0:00:10.2]} 45. Kf3 {[%clk 0:00:09.7]} 45... a6 {[%clk 0:00:10.6]}
46. Rd5 {[%clk 0:00:10.1]} 46... Kxb3 {[%clk 0:00:10.8]} 47. Ke4 {[%clk
0:00:10.8]} 47... Kxa4 {[%clk 0:00:11.3]} 48. Kf5 {[%clk 0:00:11.5]} 48... Re8
{[%clk 0:00:11.6]} 49. e6 {[%clk 0:00:12]} 49... Kb3 {[%clk 0:00:11.1]} 50. Rh7
{[%clk 0:00:11.5]} 50... a5 {[%clk 0:00:10.9]} 51. Ra7 {[%clk 0:00:10.5]} 51...
Kc2 {[%clk 0:00:10.9]} 52. e7 {[%clk 0:00:10.3]} 52... Kxd3 {[%clk 0:00:11.1]}
53. Rd8 {[%clk 0:00:10.4]} 53... Rxe7 {[%clk 0:00:11.3]} 54. Rxe7 {[%clk
0:00:11.3]} 54... a4 {[%clk 0:00:11]} 55. Ra7 {[%clk 0:00:11]} 55... f3 {[%clk
0:00:11.4]} 56. Rxa4 {[%clk 0:00:11.1]} 56... Ke2 {[%clk 0:00:11.9]} 57. Raxd4
{[%clk 0:00:11.7]} 57... Bxd4 {[%clk 0:00:11.7]} 58. Rxd4 {[%clk 0:00:12.6]}
58... Kxf2 {[%clk 0:00:12]} 59. Kxg5 {[%clk 0:00:13.3]} 59... Ke3 {[%clk
0:00:12.6]} 60. Rf4 {[%clk 0:00:14]} 1-0

[Event "Early-Titled-Tuesday-Blitz-September-05-2023"]
[Site "Chess.com"]
[Date "2023.09.05"]
[Round "11"]
[White "IM_Tissir"]
[Black "AndreiITrifan"]
[Result "0-1"]
[WhiteElo "2476"]
[BlackElo "2632"]
[TimeControl "180+1"]
[EndTime "10:06:14 PDT"]
[Termination "AndreiITrifan won by checkmate"]

1. e4 {[%clk 0:03:00.9]} 1... e5 {[%clk 0:02:59.7]} 2. Nf3 {[%clk 0:03:00.5]}
2... Nc6 {[%clk 0:02:59.7]} 3. Bc4 {[%clk 0:02:57.3]} 3... Bc5 {[%clk
0:02:57.9]} 4. c3 {[%clk 0:02:48.4]} 4... Nf6 {[%clk 0:02:56.8]} 5. d3 {[%clk
0:02:48.1]} 5... d6 {[%clk 0:02:56.2]} 6. Bb3 {[%clk 0:02:48.2]} 6... a6 {[%clk
0:02:56.3]} 7. Nbd2 {[%clk 0:02:48.6]} 7... Ba7 {[%clk 0:02:54.7]} 8. Nf1 {[%clk
0:02:48.9]} 8... Ng4 {[%clk 0:02:46.5]} 9. d4 {[%clk 0:02:46.2]} 9... O-O {[%clk
0:02:46.1]} 10. Ng3 {[%clk 0:02:46]} 10... Nf6 {[%clk 0:02:35.5]} 11. O-O {[%clk
0:02:31.6]} 11... exd4 {[%clk 0:02:31.1]} 12. Nxd4 {[%clk 0:02:19.5]} 12... h6
{[%clk 0:02:26.1]} 13. Ndf5 {[%clk 0:02:15.1]} 13... Re8 {[%clk 0:02:20.6]} 14.
Qf3 {[%clk 0:01:57.4]} 14... Ne5 {[%clk 0:02:17.5]} 15. Qe2 {[%clk 0:01:47.5]}
15... Ng6 {[%clk 0:02:12.9]} 16. Qf3 {[%clk 0:01:32.5]} 16... Ne5 {[%clk
0:01:41.4]} 17. Qe2 {[%clk 0:01:32.3]} 17... Bd7 {[%clk 0:01:31.5]} 18. Re1
{[%clk 0:00:57.5]} 18... Neg4 {[%clk 0:01:18.1]} 19. Nd4 {[%clk 0:00:35.6]}
19... Bb5 {[%clk 0:01:05.9]} 20. Qd1 {[%clk 0:00:26.2]} 20... Bd7 {[%clk
0:00:58.2]} 21. h3 {[%clk 0:00:25.4]} 21... Ne5 {[%clk 0:00:58]} 22. Nf3 {[%clk
0:00:24]} 22... Qe7 {[%clk 0:00:56.8]} 23. Be3 {[%clk 0:00:22.5]} 23... Bxe3
{[%clk 0:00:53.4]} 24. Rxe3 {[%clk 0:00:22.4]} 24... Rad8 {[%clk 0:00:53.7]} 25.
Nd4 {[%clk 0:00:20.9]} 25... g6 {[%clk 0:00:48.8]} 26. Qd2 {[%clk 0:00:20.6]}
26... c5 {[%clk 0:00:44.6]} 27. Nf3 {[%clk 0:00:20]} 27... Be6 {[%clk
0:00:41.7]} 28. Rd1 {[%clk 0:00:19.4]} 28... Kg7 {[%clk 0:00:35.3]} 29. Qe2
{[%clk 0:00:17.1]} 29... Bxb3 {[%clk 0:00:31.4]} 30. axb3 {[%clk 0:00:17]} 30...
Qe6 {[%clk 0:00:32.3]} 31. Qc2 {[%clk 0:00:16.5]} 31... Nxf3+ {[%clk 0:00:20.5]}
32. Rxf3 {[%clk 0:00:16.9]} 32... Nxe4 {[%clk 0:00:21]} 33. Re1 {[%clk
0:00:16.6]} 33... d5 {[%clk 0:00:21.1]} 34. Rfe3 {[%clk 0:00:16.6]} 34... f5
{[%clk 0:00:18.8]} 35. f3 {[%clk 0:00:16.5]} 35... f4 {[%clk 0:00:19]} 36. Rxe4
{[%clk 0:00:13.9]} 36... dxe4 {[%clk 0:00:19.2]} 37. Nxe4 {[%clk 0:00:14.8]}
37... Qe5 {[%clk 0:00:18.9]} 38. Qf2 {[%clk 0:00:14.3]} 38... b6 {[%clk
0:00:18.9]} 39. b4 {[%clk 0:00:14.3]} 39... cxb4 {[%clk 0:00:18.7]} 40. Qxb6
{[%clk 0:00:15]} 40... bxc3 {[%clk 0:00:18.2]} 41. bxc3 {[%clk 0:00:15.9]} 41...
Qe7 {[%clk 0:00:17.7]} 42. Qxa6 {[%clk 0:00:15.2]} 42... Qc7 {[%clk 0:00:16.9]}
43. Qb5 {[%clk 0:00:14.6]} 43... Qe5 {[%clk 0:00:16.9]} 44. Qb7+ {[%clk
0:00:14.2]} 44... Qe7 {[%clk 0:00:17.1]} 45. Qb6 {[%clk 0:00:15.1]} 45... Rb8
{[%clk 0:00:15.5]} 46. Qd4+ {[%clk 0:00:14.4]} 46... Qe5 {[%clk 0:00:16]} 47.
Qd7+ {[%clk 0:00:13.8]} 47... Re7 {[%clk 0:00:16.4]} 48. Qd3 {[%clk 0:00:12.1]}
48... Rbe8 {[%clk 0:00:16.4]} 49. Kh2 {[%clk 0:00:12.3]} 49... g5 {[%clk
0:00:16.4]} 50. Ra1 {[%clk 0:00:12.3]} 50... h5 {[%clk 0:00:15.7]} 51. Ra6
{[%clk 0:00:12.4]} 51... g4 {[%clk 0:00:16.6]} 52. hxg4 {[%clk 0:00:12.3]} 52...
hxg4 {[%clk 0:00:17.5]} 53. Nd6 {[%clk 0:00:12.1]} 53... g3+ {[%clk 0:00:17.7]}
54. Kg1 {[%clk 0:00:10.5]} 54... Qe1+ {[%clk 0:00:17.9]} 55. Qf1 {[%clk
0:00:11.4]} 55... Qxf1+ {[%clk 0:00:18.8]} 56. Kxf1 {[%clk 0:00:12]} 56... Re1#
{[%clk 0:00:19.3]} 0-1